[Event "WJCC U20 Girls 2019"]
[Site "New Delhi"]
[Date "2019.10.22"]
[Round "8.27"]
[White "Fretel, Liza"]
[Black "Nastase, Andreea-Cristina"]
[Result "0-1"]
[ECO "B24"]
[WhiteElo "1877"]
[BlackElo "2077"]
[Annotator "NA RC"]
[PlyCount "94"]
[EventDate "2019.10.15"]
[EventType "swiss"]
[EventCountry "IND"]
[SourceTitle "playchess.com"]
[Source "ChessBase"]
[SourceQuality "1"]
[TimeControl "40/5400+30:1800+30"]

1. e4 {[%emt 0:00:00]} c5 {[%emt 0:00:00]} 2. Nc3 {[%emt 0:00:00]} Nc6 {[%emt 0:00:00]} 3. g3 {[%emt 0:00:00]} g6 {[%emt 0:00:12]} 4. Bg2 {[%emt 0:00:03]} Bg7 {[%emt 0:00:15]} 5. d3 {[%emt 0:00:21]} Rb8 {[%emt 0:00:18]} 6. Be3 {[%emt 0:00:15]} d6 {[%emt 0:00:35]} 7. a4 {[%emt 0:03:31]} a6 {[%emt 0:01:04]} 8. f4 {[%emt 0:00:34] B26: Closed Sicilian: 3 g3, lines with early Be3} (8. Nge2 Nf6 9. O-O O-O 10. h3 b5 11. axb5 axb5 12. Qd2 b4 13. Nd1 e5 14. Bh6 Nd4 15. Bxg7 Kxg7 16. Kh2 Bb7 17. Ne3 d5 18. exd5 Nxd5 19. Ng4 Nxe2 20. Qxe2 {1-0 (34) McShane,L (2640)-Chigaev,M (2555) Katowice 2017}) 8... e6 {[%emt 0:00:14]} 9. Nf3 {[%emt 0:02:02]} Nd4 {[%emt 0:00:50]} 10. O-O {[%emt 0:01:08]} Ne7 {[%emt 0:00:14]} 11. Ne1 {[%emt 0:06:44]} O-O {[%emt 0:00:21]} 12. Qd2 {[%emt 0:00:09]} b5 $146 {[%emt 0:02:57]} ({Predecessor:} 12... Nec6 13. Qf2 f5 14. Nd1 fxe4 15. dxe4 Ne5 16. h3 Nc4 17. Bc1 Bd7 18. Kh1 e5 19. b3 exf4 20. gxf4 {0-1 (34) Grosshans,R-Vossenkuhl,J Germany 1991}) 13. axb5 {[%emt 0:00:21]} axb5 {[%emt 0:00:05]} 14. Rb1 {[%emt 0:03:07]} Qb6 {[%emt 0:07:19]} 15. b4 {[%emt 0:04:21]} cxb4 {[%emt 0:12:01]} 16. Rxb4 {[%emt 0:00:38]} Qa5 {[%emt 0:07:00]} 17. Rxd4 {[%emt 0:04:02]} Nc6 {[%emt 0:05:37]} 18. Rxd6 {[%emt 0:00:23]} Bxc3 {[%emt 0:00:06]} 19. Qf2 {[%emt 0:00:48]} Qc7 {[%emt 0:01:47]} 20. e5 {[%emt 0:05:15]} Bd7 {[%emt 0:03:55]} 21. Bc5 {[%emt 0:06:00]} Rfc8 {[%emt 0:03:38]} 22. d4 {[%emt 0:02:18]} Na5 {[%emt 0:02:53]} 23. Ra6 {[%emt 0:08:16]} Nc4 {[%emt 0:01:41]} 24. Nd3 {[%emt 0:11:22]} Qd8 $16 {[%emt 0:07:01]} 25. Rd1 {[%emt 0:03:27]} b4 {[%emt 0:08:03]} 26. Bd6 {[%emt 0:14:59]} Bb5 {[%emt 0:01:53]} 27. Ra7 {[%emt 0:00:28]} Nxd6 {[%emt 0:00:51]} 28. exd6 {[%emt 0:01:07]} Qb6 {[%emt 0:00:06]} 29. d7 {[%emt 0:01:25]} Rd8 {[%emt 0:00:27]} 30. Ne5 {[%emt 0:02:56]} Qxa7 {[%emt 0:00:13]} 31. f5 {[%emt 0:02:01]} exf5 {[%emt 0:02:03]} 32. Bd5 {[%emt 0:00:49]} Rxd7 {[%emt 0:01:11]} 33. Nxd7 {[%emt 0:00:50]} Qxd7 {[%emt 0:00:13]} 34. Bf3 {[%emt 0:00:30]} Qa7 {[%emt 0:01:11]} 35. d5 {[%emt 0:01:25]} Qxf2+ {[%emt 0:00:04]} 36. Kxf2 {[%emt 0:00:04]} Ba4 {[%emt 0:00:32]} 37. Rc1 {[%emt 0:00:58]} Bb2 {[%emt 0:00:07]} 38. Rd1 {[%emt 0:00:54]} Bxc2 {[%emt 0:00:15]} 39. Rd2 {[%emt 0:00:05]} b3 {[%emt 0:00:02]} 40. d6 {[%emt 0:00:16]} Bc3 {[%emt 0:00:08]} 41. Re2 {[%emt 0:30:45]} Be4 {[%emt 0:30:53]} 42. Bxe4 {[%emt 0:01:11]} fxe4 {[%emt 0:00:03]} 43. Rxe4 {[%emt 0:00:40]} Rd8 {[%emt 0:00:05]} 44. Kf3 {[%emt 0:01:50]} b2 {[%emt 0:00:05]} 45. d7 {[%emt 0:00:13]} Rxd7 {[%emt 0:00:08]} 46. Re8+ {[%emt 0:00:06]} Kg7 {[%emt 0:00:03]} 47. Rb8 {[%emt 0:00:07]} Rd1 0-1

[Event "WJCC U20 Girls 2019"]
[Site "New Delhi"]
[Date "2019.10.22"]
[Round "8.28"]
[White "Ghosh Samriddhaa"]
[Black "Gomez Barrera, Javiera Belen"]
[Result "1-0"]
[ECO "C47"]
[WhiteElo "1867"]
[BlackElo "2033"]
[Annotator "NA"]
[PlyCount "111"]
[EventDate "2019.10.15"]
[EventType "swiss"]
[EventCountry "IND"]
[SourceTitle "playchess.com"]
[Source "ChessBase"]
[SourceQuality "1"]
[TimeControl "40/5400+30:1800+30"]

1. e4 {[%emt 0:00:00]} e5 {[%emt 0:00:00]} 2. Nf3 {[%emt 0:00:00]} Nc6 {[%emt 0:00:00]} 3. Nc3 {[%emt 0:00:19]} Nf6 {[%emt 0:00:00]} 4. g3 {[%emt 0:00:28]} Bc5 {[%emt 0:05:27]} 5. Bg2 {[%emt 0:02:07]} d6 {[%emt 0:04:18]} 6. O-O {[%emt 0:02:49]} a6 {[%emt 0:01:48]} 7. d3 {[%emt 0:00:48]} h6 {[%emt 0:02:34]} 8. a3 {[%emt 0:03:20]} Be6 {[%emt 0:01:17]} 9. Be3 {[%emt 0:02:46]} Bxe3 {[%emt 0:17:28]} 10. fxe3 {[%emt 0:01:56]} O-O {[%emt 0:07:17]} 11. Nh4 {[%emt 0:07:22]} g6 {[%emt 0:07:51]} 12. Qd2 {[%emt 0:05:38]} Nh7 {[%emt 0:10:44]} 13. d4 {[%emt 0:16:01]} Nb8 {[%emt 0:06:23]} 14. h3 $11 {[%emt 0:21:53]} Ng5 {[%emt 0:17:26]} 15. Kh2 {[%emt 0:02:04]} Qc8 {[%emt 0:05:13]} 16. g4 {[%emt 0:17:48]} Qd8 {[%emt 0:04:04]} 17. Qf2 {[%emt 0:03:40]} c6 {[%emt 0:03:09]} 18. Qg3 {[%emt 0:05:24]} Qc7 {[%emt 0:01:55]} 19. Rf2 {[%emt 0:01:37]} a5 {[%emt 0:00:36]} 20. d5 {[%emt 0:01:23]} Bc8 {[%emt 0:01:29]} 21. Raf1 {[%emt 0:00:53]} Nd7 {[%emt 0:00:05]} 22. dxc6 {[%emt 0:01:05]} bxc6 {[%emt 0:00:08]} 23. Rd2 {[%emt 0:00:29]} Nb6 {[%emt 0:01:45]} 24. b3 Be6 {[%emt 0:00:26]} 25. Rfd1 {[%emt 0:01:20]} Rfd8 {[%emt 0:00:22]} 26. a4 {[%emt 0:00:24]} Rd7 {[%emt 0:00:43]} 27. Qf2 {[%emt 0:00:41]} Rdd8 {[%emt 0:00:29]} 28. Qf6 {[%emt 0:00:37]} Nh7 {[%emt 0:00:27]} 29. Qf2 {[%emt 0:00:21]} Qe7 {[%emt 0:00:31]} 30. Nf3 {[%emt 0:00:36]} Nf8 {[%emt 0:00:34]} 31. Rd3 {[%emt 0:00:32]} Rac8 {[%emt 0:00:28]} 32. Qd2 {[%emt 0:00:24]} d5 {[%emt 0:00:25]} 33. Kg1 {[%emt 0:00:54]} Qc7 {[%emt 0:00:32]} 34. Ne1 {[%emt 0:00:23]} Rd7 {[%emt 0:00:34]} 35. exd5 {[%emt 0:00:36]} cxd5 {[%emt 0:00:20]} 36. Nxd5 {[%emt 0:00:22]} Bxd5 {[%emt 0:00:38]} 37. Bxd5 {[%emt 0:00:08]} Nh7 {[%emt 0:00:31]} 38. Bg2 {[%emt 0:00:36]} Rxd3 {[%emt 0:00:25]} 39. Qxd3 {[%emt 0:00:06]} Ng5 {[%emt 0:00:12]} 40. Qd6 {[%emt 0:00:51]} Qxd6 {[%emt 0:00:54]} 41. Rxd6 {[%emt 0:30:02]} Rb8 {[%emt 0:05:48]} 42. Nd3 {[%emt 0:00:00]} e4 {[%emt 0:06:18]} 43. Nf2 {[%emt 0:00:00]} Kf8 {[%emt 0:01:29]} 44. Nxe4 {[%emt 0:00:00]} Ke7 {[%emt 0:00:23]} 45. Rc6 {[%emt 0:00:00]} Ne6 {[%emt 0:00:11]} 46. Nc3 {[%emt 0:00:00]} Kd7 {[%emt 0:02:07]} 47. Nb5 {[%emt 0:00:00]} Nc8 {[%emt 0:00:48]} 48. Ra6 {[%emt 0:00:00]} Nc5 {[%emt 0:00:35]} 49. Rxa5 {[%emt 0:00:00]} Nb7 {[%emt 0:00:15]} 50. Ra6 {[%emt 0:00:00]} Nc5 {[%emt 0:00:07]} 51. Rf6 {[%emt 0:00:00]} Ke7 {[%emt 0:00:27]} 52. Rc6 {[%emt 0:00:00]} Ne6 {[%emt 0:00:24]} 53. c4 {[%emt 0:00:04]} Kd7 {[%emt 0:00:14]} 54. a5 {[%emt 0:00:38]} Nd8 {[%emt 0:01:41]} 55. Rc7+ {[%emt 0:00:17]} Ke8 {[%emt 0:00:48]} 56. a6 {[%emt 0:00:56]} 1-0

[Event "WJCC U20 Girls 2019"]
[Site "New Delhi"]
[Date "2019.10.22"]
[Round "8.29"]
[White "Rindhiya V"]
[Black "Jain Nityata"]
[Result "1-0"]
[ECO "B19"]
[WhiteElo "1817"]
[BlackElo "2029"]
[Annotator "NA"]
[PlyCount "101"]
[EventDate "2019.10.15"]
[EventType "swiss"]
[EventCountry "IND"]
[SourceTitle "playchess.com"]
[Source "ChessBase"]
[SourceQuality "1"]
[TimeControl "40/5400+30:1800+30"]

1. e4 {[%emt 0:00:00]} c6 {[%emt 0:00:00]} 2. d4 {[%emt 0:00:00]} d5 {[%emt 0:00:00]} 3. Nc3 {[%emt 0:00:00]} dxe4 {[%emt 0:00:00]} 4. Nxe4 {[%emt 0:00:00]} Bf5 {[%emt 0:00:10]} 5. Ng3 {[%emt 0:00:00]} Bg6 {[%emt 0:00:06]} 6. h4 {[%emt 0:00:00]} h6 {[%emt 0:00:08]} 7. Nf3 {[%emt 0:00:00]} Nd7 {[%emt 0:00:09]} 8. h5 {[%emt 0:00:02]} Bh7 {[%emt 0:00:06]} 9. Bd3 {[%emt 0:00:03]} Bxd3 {[%emt 0:00:08]} 10. Qxd3 {[%emt 0:00:05]} e6 {[%emt 0:00:07]} ({Predecessor:} 10... Ngf6 11. Bd2 {½-½ (70) Lawitsch,G (2300)-Riediger,M (2235) Austria 1997}) 11. Bd2 {[%emt 0:00:05]} Ngf6 {[%emt 0:00:22]} 12. O-O-O {[%emt 0:00:06]} Be7 {[%emt 0:00:04]} 13. Kb1 {[%emt 0:00:04]} O-O {[%emt 0:00:31]} 14. Ne4 {[%emt 0:00:02]} Nxe4 {[%emt 0:00:26] B19: Classical Caro-Kann: 4...Bf5 main line} 15. Qxe4 {[%emt 0:00:04]} Nf6 {[%emt 0:00:05]} 16. Qe2 {[%emt 0:00:06]} Qd5 {[%emt 0:00:06]} 17. Ne5 $146 {[%emt 0:00:07]} (17. Be3) 17... c5 {[%emt 0:00:51]} 18. dxc5 {[%emt 0:00:05]} Bxc5 {[%emt 0:00:09]} 19. f3 {[%emt 0:04:37]} Bd4 {[%emt 0:04:31]} 20. Bc3 {[%emt 0:06:31]} Qxe5 {[%emt 0:00:13]} 21. Qxe5 {[%emt 0:00:03]} Bxe5 {[%emt 0:00:06]} 22. Bxe5 {[%emt 0:00:07]} Nd5 {[%emt 0:02:17]} 23. Rhe1 {[%emt 0:08:53]} Rac8 {[%emt 0:01:33]} 24. Rd4 {[%emt 0:02:49]} b5 {[%emt 0:04:02]} 25. g4 {[%emt 0:19:14]} Rc6 {[%emt 0:14:14]} 26. Bg3 {[%emt 0:07:37]} a6 $11 {[%emt 0:17:55]} 27. f4 {[%emt 0:06:46]} (27. a3 $11 {keeps the balance.}) 27... f5 {[%emt 0:01:54]} 28. gxf5 {[%emt 0:15:15]} Rxf5 29. Re5 {[%emt 0:00:08]} Rxe5 {[%emt 0:02:43]} 30. fxe5 {[%emt 0:00:01]} Rc7 {[%emt 0:27:10]} 31. a3 {[%emt 0:17:20]} Kf7 {[%emt 0:08:13]} 32. Rxd5 {[%emt 0:00:35]} exd5 {[%emt 0:06:02]} 33. e6+ {[%emt 0:00:13]} Kxe6 {[%emt 0:00:13]} 34. Bxc7 {[%emt 0:00:03]} Kf5 {[%emt 0:00:09]} 35. Bd6 {[%emt 0:00:08]} Kg5 {[%emt 0:01:12]} 36. Be5 {[%emt 0:00:04]} Kxh5 {[%emt 0:02:37]} 37. Bxg7 {[%emt 0:00:06]} Kg6 {[%emt 0:00:02]} 38. Be5 {[%emt 0:00:07]} Kf5 {[%emt 0:00:09]} 39. Bc7 {[%emt 0:00:03]} Ke4 {[%emt 0:00:10]} 40. Kc1 {[%emt 0:00:32]} Ke3 {[%emt 0:00:17]} 41. Kd1 {[%emt 0:30:04]} h5 {[%emt 0:30:12]} 42. Bb6+ {[%emt 0:00:04]} Ke4 {[%emt 0:02:02]} 43. Bd8 {[%emt 0:00:28]} Ke3 {[%emt 0:00:16]} 44. Bg5+ {[%emt 0:00:05]} Ke4 {[%emt 0:00:17]} 45. Kd2 {[%emt 0:00:18]} Kd4 {[%emt 0:00:09]} 46. Ke2 {[%emt 0:03:33]} Kc4 {[%emt 0:00:20]} 47. Ke3 {[%emt 0:01:34]} a5 {[%emt 0:01:07]} 48. Bd8 {[%emt 0:00:28]} b4 {[%emt 0:01:32]} 49. Bxa5 {[%emt 0:00:19]} d4+ {[%emt 0:03:16]} 50. Kd2 {[%emt 0:01:42]} bxa3 {[%emt 0:01:32]} 51. bxa3 {[%emt 0:00:02]} 1-0

[Event "WJCC U20 Girls 2019"]
[Site "New Delhi"]
[Date "2019.10.22"]
[Round "8.30"]
[White "Savitha Shri B"]
[Black "Kairbekova, Amina"]
[Result "1/2-1/2"]
[ECO "C04"]
[WhiteElo "1916"]
[BlackElo "2096"]
[Annotator "NA"]
[PlyCount "138"]
[EventDate "2019.10.15"]
[EventType "swiss"]
[EventCountry "IND"]
[SourceTitle "playchess.com"]
[Source "ChessBase"]
[SourceQuality "1"]
[TimeControl "40/5400+30:1800+30"]

1. e4 {[%emt 0:00:21]} e6 {[%emt 0:00:00]} 2. d4 {[%emt 0:00:04]} d5 {[%emt 0:00:00]} 3. Nd2 {[%emt 0:00:05]} Nc6 {[%emt 0:00:00]} 4. Ngf3 {[%emt 0:00:13]} Nf6 {[%emt 0:00:00]} 5. e5 {[%emt 0:00:03]} Nd7 {[%emt 0:00:01]} 6. c3 {[%emt 0:00:04]} f6 {[%emt 0:01:27]} 7. exf6 {[%emt 0:00:12]} Qxf6 {[%emt 0:00:12]} 8. Bb5 {[%emt 0:03:34] C04: French Tarrasch: 3...Nc6} a6 {[%emt 0:04:59]} (8... Bd6 9. Nf1 O-O 10. Bg5 Qf7 11. Ng3 Ne7 12. O-O Ng6 13. Bd3 Nf4 14. Bc2 b6 15. Bxf4 Bxf4 16. Qd3 g6 17. Rae1 {0-1 (74) Munenga,D (2329)-Hamdouchi,H (2575) Hammamet 2019}) 9. Ba4 {[%emt 0:00:33]} Bd6 {[%emt 0:00:34]} 10. Nf1 {[%emt 0:01:58]} O-O {[%emt 0:04:52]} 11. Bg5 {[%emt 0:01:15]} Qf7 {[%emt 0:00:07]} 12. Ne3 {[%emt 0:00:12]} Kh8 $146 {[%emt 0:22:19]} ({Predecessor:} 12... Qh5 $1 $15 13. Nf1 {[#]} Rxf3 $1 {[%mdl 576] Remove Defender} 14. Bd2 Rf5 15. g4 Qh3 16. gxf5 Qg2 17. f3 Qxh1 18. Qe2 Nde5 19. dxe5 Nxe5 20. Bd1 Bd7 21. a4 exf5 {0-1 (21) Fedorov,D (2125)-Nugumanov,B (2210) Izhevsk 2011}) 13. O-O {[%emt 0:02:08] [#]} (13. Bh4 $11) 13... Qh5 $1 {[%emt 0:00:27]} 14. Bc2 {[%emt 0:36:14]} Rxf3 {[%emt 0:09:00]} 15. h4 {[%emt 0:00:14]} h6 {[%emt 0:00:01]} 16. Qxf3 {[%emt 0:02:03]} Qxf3 {[%emt 0:00:19]} 17. gxf3 {[%emt 0:00:10]} hxg5 {[%emt 0:00:03]} 18. hxg5 {[%emt 0:00:25]} Bf4 {[%emt 0:05:59]} 19. Rae1 {[%emt 0:03:39]} Nb6 {[%emt 0:05:55]} 20. g6 {[%emt 0:02:42]} e5 {[%emt 0:02:13]} 21. Kg2 $11 {[%emt 0:09:54]} Bd7 {[%emt 0:17:20]} 22. Rh1+ {[%emt 0:00:30]} Kg8 {[%emt 0:00:30]} 23. Rh4 {[%emt 0:06:43]} Re8 24. dxe5 {[%emt 0:13:48]} Bxe3 {[%emt 0:00:34]} 25. fxe3 {[%emt 0:00:48]} Nxe5 {[%emt 0:01:00]} 26. Reh1 {[%emt 0:00:49]} Kf8 {[%emt 0:00:01]} 27. b3 {[%emt 0:02:10]} Re6 {[%emt 0:00:37]} 28. Rh8+ {[%emt 0:03:37]} Ke7 {[%emt 0:00:06]} 29. R1h7 {[%emt 0:02:26]} Kd6 {[%emt 0:03:06]} 30. Rxg7 {[%emt 0:00:48]} Be8 {[%emt 0:10:22]} 31. Bf5 {[%emt 0:01:53]} Nxg6 {[%emt 0:00:58]} 32. Rhh7 {[%emt 0:05:50]} Nf8 {[%emt 0:02:31]} 33. Bxe6 {[%emt 0:00:10]} Nxh7 {[%emt 0:00:02]} 34. Rxh7 {[%emt 0:00:01]} Kxe6 {[%emt 0:00:26]} 35. Rxc7 {[%emt 0:00:14]} Bc6 {[%emt 0:00:15]} 36. Rh7 {[%emt 0:00:18]} Nd7 {[%emt 0:00:27]} 37. Rh6+ {[%emt 0:01:36]} Kf5 {[%emt 0:00:26]} 38. Rh5+ {[%emt 0:00:06]} Kg6 {[%emt 0:00:18]} 39. Rh4 {[%emt 0:00:23]} Ne5 {[%emt 0:01:59]} 40. Rd4 {[%emt 0:00:04]} Kf5 {[%emt 0:00:07]} 41. a4 {[%emt 0:02:04]} a5 {[%emt 0:00:59]} 42. Kg3 {[%emt 0:07:06]} Nd7 {[%emt 0:00:23]} 43. b4 {[%emt 0:03:08]} Nb6 {[%emt 0:06:29]} 44. bxa5 {[%emt 0:03:00]} Nc4 {[%emt 0:04:14]} 45. e4+ {[%emt 0:02:27]} Ke6 {[%emt 0:00:00]} 46. f4 {[%emt 0:04:10]} Nd6 {[%emt 0:02:18]} 47. exd5+ {[%emt 0:02:52]} Bxd5 {[%emt 0:00:01]} 48. Kg4 {[%emt 0:01:44]} Nf5 {[%emt 0:00:51]} 49. Rb4 {[%emt 0:01:09]} Ne3+ {[%emt 0:02:11]} 50. Kg5 {[%emt 0:00:36]} Nc4 {[%emt 0:00:40]} 51. f5+ {[%emt 0:00:59]} Ke5 {[%emt 0:02:19]} 52. Rb5 {[%emt 0:01:06]} Nd6 {[%emt 0:01:23]} 53. Rb6 Nxf5 {[%emt 0:02:36]} 54. a6 {[%emt 0:07:28]} bxa6 {[%emt 0:00:06]} 55. Rxa6 {[%emt 0:00:01]} Nd6 {[%emt 0:01:43]} 56. Kg6 {[%emt 0:01:05]} Ne4 {[%emt 0:00:29]} 57. a5 {[%emt 0:00:35]} Nxc3 {[%emt 0:00:15]} 58. Rb6 {[%emt 0:00:19]} Bc4 {[%emt 0:07:50]} 59. Rb8 {[%emt 0:00:45]} Kd5 {[%emt 0:02:55]} 60. Kf6 {[%emt 0:00:19]} Kc5 {[%emt 0:00:13]} 61. Rc8+ {[%emt 0:00:38]} Kb4 {[%emt 0:00:17]} 62. Ke5 {[%emt 0:00:34]} Ba6 {[%emt 0:01:59]} 63. Rc6 {[%emt 0:00:21]} Bb5 {[%emt 0:00:17]} 64. Rc8 {[%emt 0:00:09]} Ba6 {[%emt 0:01:19]} 65. Rc6 {[%emt 0:00:06]} Bb5 {[%emt 0:00:03]} 66. Rc7 {[%emt 0:00:03]} Na4 {[%emt 0:00:04]} 67. Ra7 {[%emt 0:00:47]} Nc5 {[%emt 0:00:06]} 68. Kd5 {[%emt 0:00:52]} Na6 {[%emt 0:00:10]} 69. Rxa6 {[%emt 0:00:29]} Bxa6 {[%emt 0:00:06]} 1/2-1/2

[Event "WJCC U20 Girls 2019"]
[Site "New Delhi"]
[Date "2019.10.22"]
[Round "8.31"]
[White "Zhang, Xiao"]
[Black "Onur, Cigdem"]
[Result "1-0"]
[ECO "D30"]
[WhiteElo "2053"]
[BlackElo "1913"]
[Annotator "NA"]
[PlyCount "45"]
[EventDate "2019.10.15"]
[EventType "swiss"]
[EventCountry "IND"]
[SourceTitle "playchess.com"]
[Source "ChessBase"]
[SourceQuality "1"]
[TimeControl "40/5400+30:1800+30"]

1. d4 {[%emt 0:00:00]} d5 {[%emt 0:00:00]} 2. c4 {[%emt 0:00:00]} e6 {[%emt 0:00:00]} 3. Nf3 {[%emt 0:00:56]} Nf6 {[%emt 0:00:00]} 4. e3 {[%emt 0:00:19]} c5 {[%emt 0:00:01]} 5. Nc3 {[%emt 0:00:14]} Nc6 {[%emt 0:00:05]} 6. cxd5 {[%emt 0:00:11]} exd5 {[%emt 0:00:24]} 7. Bb5 {[%emt 0:00:06]} Bd6 {[%emt 0:08:32]} 8. dxc5 {[%emt 0:00:24]} Bxc5 {[%emt 0:00:13]} 9. O-O {[%emt 0:03:51]} O-O {[%emt 0:02:06]} 10. h3 {[%emt 0:05:26]} Be6 $11 {[%emt 0:10:29]} 11. b3 {[%emt 0:00:36]} Qe7 {[%emt 0:15:31]} 12. Bb2 {[%emt 0:02:29]} Rfd8 {[%emt 0:01:11]} 13. Ne2 {[%emt 0:01:19]} Ne4 {[%emt 0:08:11]} 14. Rc1 {[%emt 0:06:13]} Rac8 {[%emt 0:04:55]} 15. Ned4 {[%emt 0:01:39]} Bd7 {[%emt 0:03:31]} 16. Qe2 {[%emt 0:03:22]} Bd6 {[%emt 0:12:25]} 17. Rfd1 {[%emt 0:03:56]} Bb8 {[%emt 0:07:07]} 18. Nxc6 {[%emt 0:04:10]} Bxc6 {[%emt 0:01:34]} 19. Nd4 {[%emt 0:03:41]} Qd6 {[%emt 0:02:50]} 20. f4 {[%emt 0:00:21]} Qg6 {[%emt 0:09:14]} 21. Bxc6 {[%emt 0:01:02]} bxc6 {[%emt 0:00:12]} 22. Qg4 {[%emt 0:00:14]} Qxg4 {[%emt 0:11:53]} 23. hxg4 {[%emt 0:00:30]} 1-0

[Event "WJCC U20 Girls 2019"]
[Site "New Delhi"]
[Date "2019.10.22"]
[Round "8.32"]
[White "Srimathi R"]
[Black "Chandreyee, Hajra"]
[Result "1-0"]
[ECO "B15"]
[WhiteElo "1914"]
[BlackElo "2024"]
[Annotator "NA"]
[PlyCount "97"]
[EventDate "2019.10.15"]
[EventType "swiss"]
[EventCountry "IND"]
[SourceTitle "playchess.com"]
[Source "ChessBase"]
[SourceQuality "1"]
[TimeControl "40/5400+30:1800+30"]

1. e4 c6 2. d4 d5 3. Nc3 dxe4 4. Nxe4 Nf6 5. Nxf6+ exf6 6. Nf3 Bd6 7. Bd3 O-O 8. O-O Bg4 9. h3 Bh5 10. Be3 Re8 11. c4 Nd7 12. Bf5 $11 Nf8 13. d5 c5 14. Re1 Nd7 15. Bg4 Bxg4 16. hxg4 g5 17. Qc2 Kg7 18. Bd2 Rh8 19. Bc3 h5 20. Qf5 Kg8 21. Nxg5 hxg4 22. Ne4 Bh2+ 23. Kf1 Rh6 24. g3 Kg7 25. Qxg4+ Rg6 26. Qh3 Rh6 27. Qg4+ Rg6 28. Qf5 Qc8 29. Nd6 Qc7 30. Ne8+ Rxe8 31. Rxe8 Bxg3 32. Qh3 Rh6 33. Rg8+ Kxg8 34. Qxh6 Qf4 35. Qxf4 Bxf4 36. Re1 Be5 37. Bxe5 fxe5 38. f4 f6 39. fxe5 fxe5 40. Ke2 Kf7 41. Ke3 Ke7 42. Ke4 a6 43. a4 Kd6 44. Rf1 b5 45. axb5 axb5 46. b3 bxc4 47. bxc4 Nb6 48. Rf6+ Kc7 49. Rxb6 1-0

[Event "WJCC U20 Girls 2019"]
[Site "New Delhi"]
[Date "2019.10.22"]
[Round "8.32"]
[White "Srimathi R"]
[Black "Chandreyee, Hajra"]
[Result "*"]
[ECO "B15"]
[WhiteElo "1914"]
[BlackElo "2024"]
[Annotator "NA"]
[PlyCount "44"]
[EventDate "2019.10.15"]
[EventType "swiss"]
[EventCountry "IND"]
[SourceTitle "playchess.com"]
[Source "ChessBase"]
[SourceQuality "1"]
[TimeControl "40/5400+30:1800+30"]

1. e4 c6 2. d4 d5 3. Nc3 dxe4 4. Nxe4 Nf6 5. Nxf6+ exf6 6. Nf3 Bd6 7. Bd3 O-O 8. O-O Bg4 9. h3 Bh5 10. Be3 Re8 11. c4 Nd7 12. Bf5 $11 Nf8 13. d5 c5 14. Re1 Nd7 15. Bg4 Bxg4 16. hxg4 g5 17. Qc2 Kg7 18. Bd2 Rh8 19. Bc3 h5 20. Qf5 Kg8 21. Qc2 Kg7 22. Qf5 Kg8 *

[Event "WJCC U20 Girls 2019"]
[Site "New Delhi"]
[Date "2019.10.22"]
[Round "8.33"]
[White "Mirza, Diana"]
[Black "Aouachria, Marwa"]
[Result "1-0"]
[ECO "A45"]
[WhiteElo "1986"]
[BlackElo "1839"]
[Annotator "NA"]
[PlyCount "91"]
[EventDate "2019.10.15"]
[EventType "swiss"]
[EventCountry "IND"]
[SourceTitle "playchess.com"]
[Source "ChessBase"]
[SourceQuality "1"]
[TimeControl "40/5400+30:1800+30"]

1. d4 {[%emt 0:00:00]} Nf6 {[%emt 0:00:00]} 2. Bf4 {[%emt 0:00:00]} g6 {[%emt 0:00:00]} 3. Nc3 {[%emt 0:00:00]} d5 {[%emt 0:00:00]} 4. Nb5 {[%emt 0:00:11]} Na6 {[%emt 0:00:00]} 5. Nf3 {[%emt 0:01:39]} Bd7 {[%emt 0:00:50]} 6. e3 {[%emt 0:02:09]} Bg7 {[%emt 0:03:25]} 7. h3 {[%emt 0:02:10]} O-O {[%emt 0:06:36]} 8. Ne5 {[%emt 0:04:17]} Bxb5 {[%emt 0:01:29]} 9. Bxb5 {[%emt 0:00:12]} Nb8 {[%emt 0:00:12]} 10. g4 {[%emt 0:11:47]} c5 {[%emt 0:02:48]} 11. O-O {[%emt 0:03:44]} c4 {[%emt 0:07:09]} 12. c3 {[%emt 0:02:23]} Ne4 {[%emt 0:04:15]} 13. Ba4 {[%emt 0:06:00]} f6 {[%emt 0:05:29]} 14. Nf3 {[%emt 0:01:20]} a6 {[%emt 0:02:36]} 15. Bc2 {[%emt 0:01:45]} Nd6 {[%emt 0:00:10]} 16. Qe2 {[%emt 0:02:59]} Nc6 {[%emt 0:04:18]} 17. e4 {[%emt 0:03:33]} e6 {[%emt 0:00:24]} 18. exd5 {[%emt 0:01:48]} exd5 {[%emt 0:00:03]} 19. Qe6+ {[%emt 0:00:24]} Nf7 {[%emt 0:00:02]} 20. Qe2 {[%emt 0:08:14]} Re8 {[%emt 0:00:20]} 21. Qd2 {[%emt 0:00:37]} Qd7 {[%emt 0:06:14]} 22. Rfe1 {[%emt 0:02:10]} Bf8 {[%emt 0:07:18]} 23. Kg2 {[%emt 0:10:14]} Bd6 {[%emt 0:02:53]} 24. Be3 {[%emt 0:01:02]} Ncd8 {[%emt 0:14:33]} 25. Rh1 $15 {[%emt 0:04:44]} Ne6 {[%emt 0:02:46]} 26. Rag1 {[%emt 0:00:42]} Qc7 {[%emt 0:00:43]} 27. h4 {[%emt 0:02:46]} Kg7 {[%emt 0:08:39]} 28. Bb1 {[%emt 0:05:33]} Nf4+ {[%emt 0:02:04]} 29. Kf1 {[%emt 0:00:47]} Rh8 {[%emt 0:04:48]} 30. g5 {[%emt 0:02:01]} f5 {[%emt 0:00:31]} 31. h5 {[%emt 0:05:08]} Nxh5 {[%emt 0:06:01]} 32. Rxh5 {[%emt 0:00:23]} gxh5 {[%emt 0:00:06]} 33. Bxf5 {[%emt 0:00:04]} Kf8 {[%emt 0:07:57]} 34. Be6 {[%emt 0:03:48]} Qc6 {[%emt 0:00:46]} 35. g6 {[%emt 0:00:15]} hxg6 {[%emt 0:00:10]} 36. Rxg6 {[%emt 0:00:05]} Ke8 {[%emt 0:01:48]} 37. Bxf7+ {[%emt 0:00:07]} Kxf7 {[%emt 0:00:11]} 38. Ne5+ {[%emt 0:00:06]} Bxe5 {[%emt 0:00:17]} 39. Rxc6 {[%emt 0:00:03]} bxc6 {[%emt 0:00:11]} 40. dxe5 {[%emt 0:00:05]} Ke6 {[%emt 0:01:08]} 41. Qd4 {[%emt 0:37:56]} Rac8 {[%emt 0:03:20]} 42. Qh4 {[%emt 0:00:00]} Rcf8 {[%emt 0:00:18]} 43. Bc5 {[%emt 0:00:00]} Rf7 {[%emt 0:00:12]} 44. Qg5 {[%emt 0:00:00]} Rhh7 {[%emt 0:01:59]} 45. Qg6+ {[%emt 0:00:00]} Kxe5 {[%emt 0:00:12]} 46. Bd6# {[%emt 0:00:00]} 1-0